fUSD/lending_fUSD_20251118
["ID","MTS","AMOUNT","RATE_DAILY","PERIOD"]
[394326906,1763454817813,10000.01,0.00016122,2]
[394326907,1763454817837,10000.01,0.00016122,2]
[394326908,1763454817864,10000.01,0.00016122,2]
[394326909,1763454817887,10000.01,0.00016122,2]
[394326910,1763454819628,605.18,0.00019178,30]
[394326911,1763454821282,-470.73838892,0.00016122,2]
[394326912,1763454824642,-401.92771431,0.00016122,2]
[394326913,1763454825440,-8490.744,0.00016122,2]
[394326914,1763454825637,-10000.01,0.00016122,2]
[394326915,1763454825891,-10000.01,0.00016122,2]
[394326916,1763454826016,-10000.01,0.00016122,2]
[394326917,1763454826143,-10000.01,0.00016122,2]
[394326918,1763454826308,-10000.01,0.00016122,2]
[394326919,1763454826421,-10000.01,0.00016122,2]
[394326920,1763454826535,-10000.01,0.00016122,2]
[394326921,1763454828398,-10000.01,0.00016122,2]
[394326922,1763454828411,-10000.01,0.00016122,2]
[394326923,1763454831234,-10000.01,0.00016122,2]
[394326924,1763454831346,-10000.01,0.00016122,2]
[394326925,1763454831464,-10000.01,0.00016122,2]
[394326926,1763454831566,-10000.01,0.00016122,2]
[394326927,1763454831806,-10000.01,0.00016122,2]
[394326928,1763454831819,-10000.01,0.00016122,2]
[394326929,1763454831943,-10000.01,0.00016122,2]
[394326930,1763454832089,-10000.01,0.00016122,2]
[394326931,1763454832930,-3829.3429,0.00016122,2]
[394326932,1763454834327,-10000.01,0.00016122,2]
[394326933,1763454834535,-10000.01,0.00016122,2]
[394326934,1763454837257,-1200.0,0.00016122,2]
[394326935,1763454837323,-10000.01,0.00016122,2]
[394326936,1763454837433,-10000.01,0.00016122,2]
[394326937,1763454837534,-10000.01,0.00016122,2]
[394326938,1763454837684,-10000.01,0.00016122,2]
[394326939,1763454837793,-10000.01,0.00016122,2]
[394326940,1763454837963,-10000.01,0.00016122,2]
[394326941,1763454838075,-10000.01,0.00016122,2]
[394326942,1763454838229,-10000.01,0.00016122,2]
[394326943,1763454840453,-10000.01,0.00016122,2]
[394326944,1763454840563,-1771.64749549,0.00016122,2]
[394326945,1763454842413,-300.0,0.00016121,2]
[394326946,1763454846341,-162.19357696,0.00016022,2]
[394326947,1763454846375,-9675.62284608,0.00016122,2]
[394326948,1763454846403,-1154.31,0.00016122,2]
[394326949,1763454846483,-10000.01,0.00016122,2]
[394326950,1763454846603,-10000.01,0.00016122,2]
[394326951,1763454846721,-10000.01,0.00016122,2]
[394326952,1763454846848,-10000.01,0.00016122,2]
[394326953,1763454847041,-10000.01,0.00016122,2]
[394326954,1763454847143,-10000.01,0.00016122,2]
[394326955,1763454847245,-10000.01,0.00016122,2]
[394326956,1763454847387,-10000.01,0.00016122,2]
[394326957,1763454847562,302.0,0.00041686,90]
[394326958,1763454848037,-188.33344192,0.00016122,2]
[394326959,1763454849491,-10000.01,0.00016122,2]
[394326960,1763454853147,-1200.0,0.00016122,2]
[394326961,1763454855879,-1317.94042873,0.00016122,2]
[394326962,1763454863410,-8989.4739968,0.00016122,2]
[394326963,1763454866244,-335.0391,0.00016122,2]
[394326964,1763454868967,-1760.65605216,0.00016122,2]
[394326965,1763454870997,-288.20351911,0.00016122,2]
[394326966,1763454871036,-10000.01,0.00016122,2]
[394326967,1763454871060,-10000.01,0.00016122,2]
[394326968,1763454871073,-10000.01,0.00016122,2]
[394326969,1763454871120,-10000.01,0.00016122,2]
[394326970,1763454871252,-10000.01,0.00016122,2]
[394326971,1763454871364,-10000.01,0.00016122,2]
[394326972,1763454871513,-10000.01,0.00016122,2]
[394326973,1763454871615,-10000.01,0.00016122,2]
[394326974,1763454871735,-10000.01,0.00016122,2]
[394326975,1763454872770,-270.946,0.00016122,2]
[394326976,1763454873492,-10000.01,0.00016122,2]
[394326977,1763454876661,-10000.01,0.00016122,2]
[394326978,1763454876939,-10000.01,0.00016122,2]
[394326979,1763454877075,-10000.01,0.00016122,2]
[394326980,1763454877188,-10000.01,0.00016122,2]
[394326981,1763454877302,-10000.01,0.00016122,2]
[394326982,1763454877445,-10000.01,0.00016122,2]
[394326983,1763454877617,-10000.01,0.00016122,2]
[394326984,1763454877742,-10000.01,0.00016122,2]
[394326985,1763454877913,-10000.01,0.00016122,2]
[394326986,1763454877959,-5723.42655808,0.00016122,2]
[394326987,1763454878671,150.0,0.00015833,2]
[394326988,1763454879504,-550.0,0.00016122,2]
[394326989,1763454879530,-10000.01,0.00016122,2]
[394326990,1763454882675,-10000.01,0.00016122,2]
[394326991,1763454882863,-10000.01,0.00016122,2]
[394326992,1763454882968,-10000.01,0.00016122,2]
[394326993,1763454883109,-10000.01,0.00016122,2]
[394326994,1763454883264,-4522.12111789,0.00016122,2]
[394326995,1763454883301,-955.76776422,0.00016122,2]
[394326996,1763454883371,-44.23223578,0.00016122,2]
[394326997,1763454883401,-3760.36012844,0.00016122,2]
[394326998,1763454883437,-2390.82527156,0.00016122,2]
[394326999,1763454883497,-500.0,0.00016173,2]
[394327000,1763454883525,-474.18379636,0.00016173,2]
[394327001,1763454883552,-500.0,0.00016221,2]
[394327002,1763454903996,250.02703424,0.00016121,2]
[394327003,1763454904033,500.0,0.00016121,2]
[394327004,1763454904070,501.05133945,0.00016121,2]
[394327005,1763454904101,553.04656163,0.00016121,2]
[394327006,1763454904137,500.0,0.00016121,2]
[394327007,1763454904167,500.0,0.00016121,2]
[394327008,1763454904208,500.0,0.00016121,2]
[394327009,1763454904242,500.0,0.00016121,2]
[394327010,1763454904276,500.0,0.00016121,2]
[394327011,1763454904316,500.0,0.00016121,2]
[394327012,1763454904357,500.0,0.00016121,2]
[394327013,1763454904390,500.0,0.00016121,2]
[394327014,1763454904429,224.11371782,0.00016121,2]
[394327015,1763454904461,500.0,0.00016121,2]
[394327016,1763454904493,500.0,0.00016121,2]
[394327017,1763454904524,23.40375414,0.00016121,2]
[394327018,1763454904548,276.59624586,0.00016121,2]
[394327019,1763454904589,500.0,0.00016121,2]
[394327020,1763454904626,500.0,0.00016121,2]
[394327021,1763454904671,500.0,0.00016121,2]
[394327022,1763454904701,500.0,0.00016121,2]
[394327023,1763454904744,500.0,0.00016121,2]
[394327024,1763454904780,500.0,0.00016121,2]
[394327025,1763454904817,500.0,0.00016121,2]
[394327026,1763454904849,500.0,0.00016121,2]
[394327027,1763454904886,500.0,0.00016121,2]
[394327028,1763454904918,500.0,0.00016121,2]
[394327029,1763454904949,500.0,0.00016121,2]
[394327030,1763454904987,500.0,0.00016121,2]
[394327031,1763454905020,500.0,0.00016121,2]
[394327032,1763454905244,500.0,0.00016121,2]
[394327033,1763454905289,500.0,0.00016121,2]
[394327034,1763454905322,500.0,0.00016121,2]
[394327035,1763454905357,500.0,0.00016121,2]
[394327036,1763454905391,500.0,0.00016121,2]
[394327037,1763454905430,500.0,0.00016121,2]
[394327038,1763454905464,223.41375414,0.00016121,2]
[394327039,1763454905492,276.58624586,0.00016121,2]
[394327040,1763454905528,500.0,0.00016121,2]
[394327041,1763454905569,500.0,0.00016121,2]
[394327042,1763454905613,500.0,0.00016121,2]
[394327043,1763454905650,500.0,0.00016121,2]
[394327044,1763454905682,500.0,0.00016121,2]
[394327045,1763454905739,500.0,0.00016121,2]
[394327046,1763454905772,500.0,0.00016121,2]
[394327047,1763454905804,500.0,0.00016121,2]
[394327048,1763454905835,500.0,0.00016121,2]
[394327049,1763454905864,500.0,0.00016121,2]
[394327050,1763454905900,500.0,0.00016121,2]
[394327051,1763454905930,500.0,0.00016121,2]
[394327052,1763454905961,500.0,0.00016121,2]
[394327053,1763454905991,500.0,0.00016121,2]
[394327054,1763454906028,500.0,0.00016121,2]
[394327055,1763454906058,500.0,0.00016121,2]
[394327056,1763454906092,500.0,0.00016121,2]
[394327057,1763454906127,500.0,0.00016121,2]
[394327058,1763454906162,500.0,0.00016121,2]
[394327059,1763454906198,223.42375414,0.00016121,2]
[394327060,1763454906223,276.57624586,0.00016121,2]
[394327061,1763454906256,500.0,0.00016121,2]
[394327062,1763454906287,500.0,0.00016121,2]
[394327063,1763454906323,272.55533484,0.00016121,2]
[394327064,1763454907423,151.0,0.00041685,90]
[394327065,1763454919807,2516.0,0.00016163,2]
[394327066,1763454938079,500.0,0.00016221,2]
[394327067,1763454968872,2467.5,0.00015829,2]
[394327068,1763454998123,877.15026967,0.00016196,2]
[394327069,1763454998269,50000.0,0.00041685,33]
[394327070,1763455001204,1000.0,0.00015762,2]
[394327071,1763455113603,500.0,0.00016221,2]
[394327072,1763455119226,7622.85973033,0.0001572,2]
[394327073,1763455119250,10000.01,0.0001572,2]
[394327074,1763455119271,813.86026967,0.0001572,2]
[394327075,1763455134772,500.0,0.00016221,2]
[394327076,1763455138704,-3484.39903646,0.00016337,2]
[394327077,1763455138732,-300.0,0.00016437,2]
[394327078,1763455138759,-300.0,0.00016437,2]
[394327079,1763455138786,-250.0,0.00016446,2]
[394327080,1763455138813,-195.0,0.00016446,2]
[394327081,1763455138844,-300.0,0.00016455,2]
[394327082,1763455138872,-41.21192708,0.00016472,2]
[394327083,1763455147529,-258.78807292,0.00016472,2]
[394327084,1763455147557,-300.0,0.00016472,2]
[394327085,1763455147585,-300.0,0.00016472,2]
[394327086,1763455147613,-300.0,0.00016472,2]
[394327087,1763455147641,-500.0,0.00016527,2]
[394327088,1763455147669,-280.3589,0.00016558,2]
[394327089,1763455147699,-1200.0,0.00016566,2]
[394327090,1763455147725,-300.0,0.00016566,2]
[394327091,1763455147755,-159.59045278,0.00016567,2]
[394327092,1763455147784,-1179.15582057,0.00016567,2]
[394327093,1763455147813,-170.58483636,0.00016567,2]
[394327094,1763455153588,-300.0,0.000165,2]
[394327095,1763455153617,-300.0,0.00016538,2]
[394327096,1763455153645,-303.77842352,0.00016538,2]
[394327097,1763455153672,-1947.27387,0.0001662,2]
[394327098,1763455166897,500.0,0.0001588,2]
[394327101,1763455242041,200.0,0.00015733,2]
[394327103,1763455268733,200.0,0.000157,2]
[394327104,1763455298690,-222.2989347,0.0001633,2]
[394327105,1763455298724,-500.0,0.00016337,2]
[394327106,1763455298761,-195.0,0.00016415,2]
[394327107,1763455298795,-330.59979766,0.000165,2]
[394327108,1763455298831,-300.0,0.00016529,2]
[394327109,1763455298867,-2500.0,0.00016558,2]
[394327110,1763455299155,-4431.85374825,0.00016567,2]
[394327111,1763455301779,-4280.10992759,0.00016567,2]
[394327112,1763455301812,-300.0,0.00016581,2]
[394327113,1763455301843,-300.0,0.00016593,2]
[394327114,1763455304902,-300.0,0.00016603,2]
[394327115,1763455304932,-4431.85374819,0.00016604,2]
[394327116,1763455307822,-4280.10992759,0.00016604,2]
[394327118,1763455349969,283.63,0.00015748,2]
[394327119,1763455352943,158.75539941,0.00016567,2]
[394327121,1763455382414,997.40474541,0.000166,2]
[394327122,1763455382441,1002.59525459,0.000166,2]
[394327123,1763455382698,642.44,0.000166,2]
[394327124,1763455383255,1000.0,0.000166,2]
[394327125,1763455383560,1000.0,0.000166,2]
[394327126,1763455383848,159.856,0.000166,2]
[394327127,1763455384377,152.10310767,0.00016567,2]
[394327128,1763455396701,596.30435792,0.00016221,2]
[394327133,1763455435291,1843.91,7.877e-05,2]
[394327134,1763455435493,1843.91,8.291e-05,2]
[394327135,1763455435682,1758.89127982,8.706e-05,2]
[394327136,1763455435706,85.01872018,8.706e-05,2]
[394327137,1763455435878,1843.91,9.121e-05,2]
[394327138,1763455436094,1843.91,9.535e-05,2]
[394327139,1763455436295,1843.91,9.95e-05,2]
[394327140,1763455436491,1843.91,0.00010364,2]
[394327141,1763455436689,1843.91,0.00010779,2]
[394327142,1763455436917,695.44127982,0.00011193,2]
[394327143,1763455436949,1148.46872018,0.00011193,2]
[394327144,1763455437121,1843.91,0.00011608,2]
[394327145,1763455437320,1843.91,0.00012023,2]
[394327146,1763455437680,1843.91,0.00012437,2]
[394327147,1763455437935,1843.91,0.00012852,2]
[394327148,1763455438134,1169.80720954,0.00013266,2]
[394327149,1763455438167,674.10279046,0.00013266,2]
[394327150,1763455438328,1843.91,0.00013681,2]
[394327151,1763455438527,1843.91,0.00014096,2]
[394327152,1763455438723,1843.91,0.0001451,2]
[394327153,1763455438925,1843.91,0.00014925,2]
[394327154,1763455439128,1843.91,0.00015339,2]
[394327155,1763455440600,-1843.91,0.00015754,2]
[394327156,1763455461439,196.6551,0.0001623,2]
[394327157,1763455469238,200.0,0.00012758,2]
[394327158,1763455485866,1000.0,0.00016558,2]
[394327159,1763455488225,3138.31,0.00015729,2]
[394327160,1763455502600,-1000.0,0.000167,6]
[394327161,1763455502627,-1600.0,0.000167,6]
[394327162,1763455502658,-1200.0,0.000168,6]
[394327163,1763455502685,-2000.0,0.000168,6]
[394327164,1763455502715,-200.0,0.000169,6]
[394327165,1763455502743,-400.0,0.000169,6]
[394327166,1763455504293,150.0,0.00015288,2]
[394327167,1763455504363,150.0,0.00016137,2]
[394327168,1763455507759,150.0,0.00015288,2]
[394327169,1763455507798,150.0,0.00016137,2]
[394327170,1763455507993,150.0,0.00015288,2]
[394327171,1763455511631,684.13919596,0.00016527,2]
[394327172,1763455512567,183.4097123,0.00015288,2]
[394327173,1763455512656,150.0,0.00015288,2]
[394327174,1763455515156,9.67599174,0.00015288,2]
[394327175,1763455515181,140.32400826,0.00015288,2]
[394327176,1763455515226,150.0,0.00016137,2]
[394327177,1763455517587,684.13919596,0.00016542,2]
[394327178,1763455521639,150.0,0.00015288,2]
[394327179,1763455523582,684.13919596,0.00016557,2]
[394327180,1763455524799,150.73376493,0.00015288,2]
[394327181,1763455527273,150.0,0.00015288,2]
[394327182,1763455527415,150.0,0.00015288,2]
[394327183,1763455527470,150.0,0.00015627,2]
[394327184,1763455527550,150.0,0.00015967,2]
[394327185,1763455527620,150.0,0.00016307,2]
[394327186,1763455529637,150.0,0.00015288,2]
[394327189,1763455615111,10000.01,0.00016445,2]
[394327190,1763455615135,10000.01,0.00016445,2]
[394327191,1763455615158,10000.01,0.00016445,2]
[394327192,1763455615180,10000.01,0.00016445,2]
[394327193,1763455615202,10000.01,0.00016445,2]
[394327194,1763455615227,10000.01,0.00016445,2]
[394327195,1763455615249,5128.8208188,0.00016445,2]
[394327197,1763455625142,-283.63,0.00016623,2]
[394327198,1763455625195,-300.0,0.00016625,2]
[394327199,1763455625245,-300.0,0.00016626,2]
[394327200,1763455625298,-300.0,0.00016626,2]
[394327201,1763455625352,-1200.0,0.00016626,2]
[394327202,1763455625401,-1200.0,0.00016627,2]
[394327203,1763455625428,-300.0,0.00016627,2]
[394327204,1763455625455,-250.0,0.00016627,2]
[394327205,1763455625480,-7728.28311348,0.00016628,2]
[394327206,1763455625505,-300.0,0.00016628,2]
[394327207,1763455625531,-2649.0,0.00016629,2]
[394327208,1763455625557,-5175.348,0.00016629,2]
[394327209,1763455625583,-313.73888652,0.00016646,2]
[394327214,1763455652925,4428.80520262,0.00016567,2]
[394327215,1763455657787,442.38397858,0.00016604,2]
[394327216,1763455657815,3986.42122402,0.00016604,2]
[394327217,1763455659226,1000.0,0.00016558,2]
[394327218,1763455665039,152.10310764,0.00016567,2]
[394327219,1763455678229,158.01312981,0.00016567,2]
[394327220,1763455685351,200.0,0.00016484,2]
[394327222,1763455701863,4503.47253853,0.00016558,2]
[394327223,1763455701888,1819.75326147,0.00016558,2]
[394327224,1763455707995,2500.0,0.00016558,2]
[394327225,1763455713183,4895.73906949,0.00016567,2]
[394327226,1763455718181,784.51766904,0.00016604,2]
[394327227,1763455718206,4111.22140036,0.00016604,2]
[394327236,1763455812323,500.0,0.00041686,30]
[394327237,1763455812998,500.0,0.00041686,30]
[394327238,1763455813641,500.0,0.00041686,30]
[394327239,1763455814237,500.0,0.00041686,30]
[394327240,1763455815330,500.0,0.00041686,30]
[394327241,1763455815952,500.0,0.00041686,30]
[394327242,1763455829090,1000.0,0.00016558,2]
[394327260,1763455832102,-631.466576,0.00016623,2]
[394327262,1763455832112,-302.42977567,0.00016624,2]
[394327263,1763455832121,-300.0,0.00016624,2]
[394327264,1763455832131,-300.0,0.00016626,2]
[394327266,1763455832140,-1200.0,0.0001664,2]
[394327267,1763455832149,-300.0,0.0001664,2]
[394327270,1763455832159,-300.0,0.0001664,2]
[394327272,1763455832169,-1617.13368963,0.0001664,2]
[394327274,1763455832178,-4428.8052026,0.00016641,2]
[394327275,1763455832188,-4895.7390694,0.00016641,2]
[394327276,1763455832197,-36.26111348,0.00016646,2]
[394327277,1763455832207,-150.0,0.00016647,2]
[394327278,1763455832216,-151.0,0.00016655,2]
[394327279,1763455832227,-264.37836761,0.00016655,2]
[394327280,1763455832237,-1200.0,0.00016656,2]
[394327281,1763455832247,-300.0,0.00016656,2]
[394327282,1763455832256,-550.0,0.00016656,2]
[394327283,1763455832266,-1565.75,0.00016657,2]
[394327284,1763455832287,-523.46270611,0.00016657,2]
[394327285,1763455832306,-500.0,0.00016657,2]
[394327286,1763455832317,-500.0,0.00016657,2]
[394327287,1763455832332,-500.0,0.00016657,2]
[394327288,1763455832343,-500.0,0.00016657,2]
[394327289,1763455832352,-500.0,0.00016657,2]
[394327290,1763455832364,-500.0,0.00016657,2]
[394327291,1763455832375,-473.27692908,0.00016657,2]
[394327292,1763455832386,-500.0,0.00016657,2]
[394327293,1763455832397,-500.0,0.00016657,2]
[394327294,1763455832407,-500.0,0.00016657,2]
[394327295,1763455832421,-500.0,0.00016657,2]
[394327296,1763455832430,-500.0,0.00016657,2]
[394327297,1763455832439,-500.0,0.00016657,2]
[394327298,1763455832449,-460.10931882,0.00016657,2]
[394327299,1763455832459,-500.0,0.00016657,2]
[394327300,1763455832467,-500.0,0.00016657,2]
[394327301,1763455832478,-500.0,0.00016657,2]
[394327303,1763455832487,-500.0,0.00016657,2]
[394327305,1763455832497,-500.0,0.00016657,2]
[394327307,1763455832507,-500.0,0.00016657,2]
[394327309,1763455832516,-502.75596404,0.00016657,2]
[394327311,1763455832526,-500.0,0.00016657,2]
[394327313,1763455832536,-500.0,0.00016657,2]
[394327315,1763455832545,-500.0,0.00016657,2]
[394327316,1763455832554,-500.0,0.00016657,2]
[394327318,1763455832563,-500.0,0.00016657,2]
[394327320,1763455832572,-500.0,0.00016657,2]
[394327322,1763455832581,-527.02812988,0.00016657,2]
[394327324,1763455832591,-500.0,0.00016657,2]
[394327326,1763455832600,-500.0,0.00016657,2]
[394327328,1763455832609,-329.83439387,0.00016657,2]
[394327330,1763455832618,-551.84940414,0.00016657,2]
[394327333,1763455832627,-214.1996409,0.00016657,2]
[394327335,1763455832637,-500.0,0.00016657,2]
[394327337,1763455832646,-528.40406753,0.00016657,2]
[394327339,1763455832655,-588.15351434,0.00016657,2]
[394327341,1763455832664,-500.0,0.00016657,2]
[394327343,1763455832674,-200.0,0.00016657,2]
[394327345,1763455832683,-500.0,0.00016657,2]
[394327347,1763455832692,-500.0,0.00016657,2]
[394327350,1763455832702,-500.0,0.00016657,2]
[394327352,1763455832712,-500.0,0.00016657,2]
[394327354,1763455832721,-434.27007163,0.00016657,2]
[394327356,1763455832733,-500.0,0.00016657,2]
[394327358,1763455832742,-500.0,0.00016657,2]
[394327360,1763455832752,-500.0,0.00016657,2]
[394327362,1763455832761,-500.0,0.00016657,2]
[394327364,1763455832771,-424.20261137,0.00016657,2]
[394327366,1763455832780,-500.0,0.00016657,2]
[394327368,1763455832790,-500.0,0.00016657,2]
[394327370,1763455832799,-500.0,0.00016657,2]
[394327372,1763455832808,-500.0,0.00016657,2]
[394327374,1763455832817,-500.0,0.00016657,2]
[394327376,1763455832827,-500.0,0.00016657,2]
[394327378,1763455832836,-500.0,0.00016657,2]
[394327380,1763455832846,-500.0,0.00016657,2]
[394327382,1763455832856,-500.0,0.00016657,2]
[394327384,1763455832865,-500.0,0.00016657,2]
[394327386,1763455832874,-500.0,0.00016657,2]
[394327388,1763455832884,-500.0,0.00016657,2]
[394327390,1763455832893,-500.0,0.00016657,2]
[394327392,1763455832903,-500.0,0.00016657,2]
[394327394,1763455832913,-500.0,0.00016657,2]
[394327396,1763455832922,-500.0,0.00016657,2]
[394327398,1763455832931,-500.0,0.00016657,2]
[394327399,1763455832940,-500.0,0.00016657,2]
[394327400,1763455832950,-500.0,0.00016657,2]
[394327401,1763455832959,-266.59962458,0.00016657,2]
[394327402,1763455832968,-500.0,0.00016657,2]
[394327403,1763455832979,-500.0,0.00016657,2]
[394327404,1763455832989,-500.0,0.00016657,2]
[394327405,1763455832998,-500.0,0.00016657,2]
[394327406,1763455833007,-500.0,0.00016657,2]
[394327407,1763455833016,-500.0,0.00016657,2]
[394327408,1763455833026,-500.0,0.00016657,2]
[394327409,1763455833036,-500.0,0.00016657,2]
[394327410,1763455833045,-500.0,0.00016657,2]
[394327411,1763455833054,-500.0,0.00016657,2]
[394327412,1763455833064,-500.0,0.00016657,2]
[394327413,1763455833073,-500.0,0.00016657,2]
[394327414,1763455833082,-500.0,0.00016657,2]
[394327415,1763455833091,-500.0,0.00016657,2]
[394327416,1763455833101,-500.0,0.00016657,2]
[394327417,1763455833111,-500.0,0.00016657,2]
[394327418,1763455833120,-500.0,0.00016657,2]
[394327419,1763455833130,-250.6160495,0.00016657,2]
[394327420,1763455833139,-239.59914912,0.00016657,2]
[394327421,1763455833148,-500.0,0.00016657,2]
[394327422,1763455833158,-500.0,0.00016657,2]
[394327423,1763455833167,-427.05227771,0.00016657,2]
[394327424,1763455833177,-227.46288222,0.00016657,2]
[394327425,1763455833186,-500.0,0.00016657,2]
[394327426,1763455833196,-159.73276608,0.00016657,2]
[394327427,1763455833205,-500.0,0.00016657,2]
[394327428,1763455833214,-579.86638304,0.00016657,2]
[394327429,1763455833223,-157.32755515,0.00016657,2]
[394327430,1763455833233,-228169.75712494,0.00016658,2]
[394327431,1763455833245,-46024.17791347,0.00016658,2]
[394327432,1763455833256,-30966.81172022,0.00016658,2]
[394327433,1763455833276,-2199.6424,0.00016658,2]
[394327434,1763455833290,-1328.67,0.00016658,2]
[394327435,1763455833309,-4238.48357461,0.00016658,2]
[394327438,1763455838133,-3510.93121579,0.00016658,2]
[394327439,1763455838242,-660.1508,0.00016658,2]
[394327440,1763455838402,-43059.04327013,0.00016658,2]
[394327451,1763455839360,150.0,0.00016606,2]
[394327455,1763455840246,-1.6e-07,0.00016658,2]
[394327456,1763455840265,-878.5550045,0.00016658,2]
[394327457,1763455840279,-6567.72636648,0.00016658,2]
[394327458,1763455840461,-1335.89322669,0.00016658,2]
[394327470,1763455843397,-714.71900507,0.00016658,2]
[394327472,1763455843408,-390345.43837794,0.00016658,2]
[394327474,1763455843417,-3413.0,0.00016667,2]
[394327476,1763455843430,-500.0,0.00016673,2]
[394327478,1763455843443,-500.0,0.00016673,2]
[394327479,1763455843451,-501.82142704,0.00016673,2]
[394327480,1763455843460,-502.08541522,0.00016673,2]
[394327481,1763455843470,-4428.8052026,0.00016678,2]
[394327482,1763455843479,-4895.7390694,0.00016678,2]
[394327483,1763455843490,-4428.8052026,0.00016715,2]
[394327484,1763455843502,-4895.7390694,0.00016715,2]
[394327485,1763455843511,-2649.0,0.00016728,2]
[394327486,1763455843520,-200.0,0.00016748,2]
[394327487,1763455843530,-4428.8052026,0.00016752,2]
[394327488,1763455843539,-4895.7390694,0.00016752,2]
[394327489,1763455843548,-4428.8052026,0.00016789,2]
[394327490,1763455843557,-4895.7390694,0.00016789,2]
[394327491,1763455843566,-172.85,0.00016801,2]
[394327492,1763455843576,-216.6073282,0.00016807,2]
[394327493,1763455843585,-4428.8052026,0.00016826,2]
[394327494,1763455843595,-4895.7390694,0.00016826,2]
[394327495,1763455843604,-3413.0,0.00016858,2]
[394327496,1763455843613,-4428.8052026,0.00016863,2]
[394327497,1763455843622,-4895.7390694,0.00016863,2]
[394327498,1763455843631,-1947.27388,0.0001687,2]
[394327499,1763455843644,-165.69252863,0.00016886,2]
[394327500,1763455843654,-7223.8395,0.00016886,2]
[394327501,1763455843664,-1000.0,0.00016886,2]
[394327502,1763455843673,-891.3485539,0.00016891,2]
[394327503,1763455843682,-185.71343048,0.00016898,2]
[394327504,1763455843692,-501.59085028,0.00016898,2]
[394327505,1763455843701,-511.57828794,0.00016899,2]
[394327506,1763455843711,-150.0,0.00016899,2]
[394327507,1763455843720,-150.0,0.00016899,2]
[394327508,1763455843730,-299.01087313,0.00016899,2]
[394327509,1763455843741,-150.0,0.00016899,2]
[394327510,1763455843750,-500.0,0.00016899,2]
[394327511,1763455843760,-150.0,0.00016899,2]
[394327512,1763455843769,-500.0,0.00016899,2]
[394327513,1763455843778,-10000.0,0.000169,2]
[394327514,1763455843787,-4428.8052026,0.000169,2]
[394327515,1763455843796,-4895.7390694,0.000169,2]
[394327516,1763455843805,-200.0,0.000169,2]
[394327517,1763455843814,-317.92012796,0.000169,2]
[394327518,1763455843823,-1565.75,0.00016931,2]
[394327519,1763455843832,-500.0,0.00016973,2]
[394327520,1763455843844,-500.0,0.00016973,2]
[394327521,1763455843854,-160.69470372,0.00016973,2]
[394327522,1763455843863,-184.74437325,0.00016973,2]
[394327523,1763455843872,-500.0,0.00016973,2]
[394327524,1763455843882,-500.0,0.00016973,2]
[394327525,1763455843891,-500.0,0.00016973,2]
[394327526,1763455843900,-500.0,0.00016973,2]
[394327527,1763455843909,-500.0,0.00016973,2]
[394327528,1763455843918,-553.19138914,0.00016973,2]
[394327529,1763455843927,-178.99807806,0.00016973,2]
[394327530,1763455843937,-500.0,0.00016973,2]
[394327531,1763455843946,-627.58559871,0.00016973,2]
[394327532,1763455843955,-503.77862628,0.00016973,2]